Cogmind - Beta 11.1 @@@ ROGUE MODE // 2022.08.05 @ 21:58:09 Player: tkc Result: Destroyed by H-77 Assassin with Coil Gun Performance ------------- Evolutions (7) 3500 Regions Visited (15) 3000 Robots Destroyed (248) 1240 Value Destroyed (6901) 6901 Prototype IDs (44) 880 Alien Tech Used (0) 0 Bonus (1228) 1228 TOTAL SCORE: 16749 Bonus ------- High Alert Combat Kills 281 Follower Combat Kills 347 Aligned with FarCom 300 Met Data Miner 300 Cogmind --------- Core Integrity 0/1300 Matter 74/300 Energy 100/100 System Corruption 10% Temperature Cool (0) Movement Core (50) Location -3/Research Parts ------- > --- POWER (2) -------- (None) > --- PROPULSION (4) --- (None) > --- UTILITY (13) ----- (None) > --- WEAPON (2) ------- (None) > --- INVENTORY (5) ---- Disruptor Cannon HERF Cannon Heavy Phase Cannon Tesla Bomb Launcher Advanced Remote Datajack Peak State ------------ > --- POWER ------------ Cooled Fission Core Micro Antimatter Reactor > --- PROPULSION ------- Improved Antigrav System Improved Gyrokinetic Inverter Antigrav Array > --- UTILITY ---------- Advanced Cooling System Advanced Cooling System Large Storage Unit Quantum Shading Machine Advanced Terrain Scan Processor Advanced Melee Analysis Suite Core Analyzer Recoil Nullifier Layered Heavy Armor Plating Advanced Focal Shield Hacking Suite Hacking Suite > --- WEAPON ----------- Gamma Rifle Hypervelocity Railgun > --- INVENTORY -------- Micro Fission Core Light Quantum Reactor Improved Gravmag System Improved Antigrav System HERF Cannon Heavy Ion Cannon Heavy Phase Cannon Mass Driver Heavy Shock Bomb Launcher Mini Grenade Launcher Mini Grenade Launcher Advanced Remote Datajack Field Lobotomy Kit Powered Hammer Enhanced Force Lance [Rating: 136] Favorites ----------- Power Light Ion Engine Engine Light Ion Engine Power Core Light Nuclear Core Reactor Cold Fusion Reactor Propulsion Armored Wheel Treads Armored Treads Leg Carbon-fiber Leg Wheel Armored Wheel Hover Unit Improved Gravmag System Flight Unit Xenon Bombardment Thruster Utility Hacking Suite Device Improved Terrain Scanner Storage High-capacity Storage Unit Processor Improved Terrain Scan Processor Hackware Hacking Suite Protection Light Armor Plating Weapon Powered Hammer Energy Gun EM Pulse Gun Energy Cannon Neutron Cannon Ballistic Gun Flak Gun Ballistic Cannon Flak Cannon Launcher Mini Grenade Launcher Special Weapon Mining Laser Impact Weapon Powered Hammer Piercing Weapon Enhanced Force Lance Build | -11 -10 -10 -10 -9 -8 -7 -7 -7 -6 -6 -5 -4 -4 -4 -3 ------- Run | Scr Mat Min Exi Min Mat Fac Low Dat Pro Fac Fac Fac Upp Upp Res Slots Evolved 14 | . . . . . 4 2 . . . 2 2 2 . . 2 Power 1 | . . . . . . . . . . . 1 . . . . Propulsion 2 | . . . . . . 1 . . . 1 . . . . . Utility 11 | . . . . . 4 1 . . . 1 1 2 . . 2 Weapon . | . . . . . . . . . . . . . . . . Parts Attached 271 | 7 19 7 . 4 48 14 . 2 13 50 21 7 9 6 64 Power 23 | 1 1 . . . 3 1 . . 1 5 1 1 1 . 8 Engine 9 | 1 1 . . . 2 1 . . . 4 . . . . . Core 8 | . . . . . 1 . . . 1 1 . 1 . . 4 Reactor 6 | . . . . . . . . . . . 1 . 1 . 4 Propulsion 59 | 2 4 3 . 1 7 2 . . 2 15 3 . 4 . 16 Treads 9 | . 3 . . . 5 . . . . 1 . . . . . Leg 10 | . . . . . . . . . 1 6 1 . . . 2 Wheel 26 | 2 1 3 . 1 1 2 . . 1 8 2 . . . 5 Hover 13 | . . . . . 1 . . . . . . . 4 . 8 Flight 1 | . . . . . . . . . . . . . . . 1 Utility 81 | 2 5 . . . 20 3 . . 3 18 11 2 1 4 12 Device 34 | 1 1 . . . 6 1 . . . 10 6 . . 2 7 Storage 8 | 1 2 . . . 2 . . . 1 . 2 . . . . Processor 9 | . . . . . 2 . . . . 2 2 . 1 . 2 Hackware 4 | . . . . . . 1 . . . . . 1 . 1 1 Protection 26 | . 2 . . . 10 1 . . 2 6 1 1 . 1 2 Artifact . | . . . . . . . . . . . . . . . . Weapon 108 | 2 9 4 . 3 18 8 . 2 7 12 6 4 3 2 28 Energy Gun 19 | 2 8 2 . 1 . 1 . . . . 2 1 . . 2 Energy Cannon 13 | . . . . . 1 1 . . 1 2 1 . . 1 6 Ballistic Gun 12 | . . 1 . 1 5 . . . . 2 . . . 1 2 Ballistic Cannon 14 | . . . . . 7 4 . . 1 . . . . . 2 Launcher 23 | . . 1 . 1 2 . . . 2 4 2 1 1 . 9 Special Weapon 8 | . 1 . . . 3 . . . . . . 1 1 . 2 Impact Weapon 18 | . . . . . . 2 . 2 3 4 1 1 1 . 4 Slashing Weapon . | . . . . . . . . . . . . . . . . Piercing Weapon 1 | . . . . . . . . . . . . . . . 1 Special Melee Weapon . | . . . . . . . . . . . . . . . . Unidentified Prototypes 10 | . . . . . 2 . . . 2 1 2 . . . 3 Corrupted Parts 1 | . . . . . . . . . . 1 . . . . . System Corruption 5 | . . . . . . . . . . 5 . . . . . Parts Lost 98 | . 2 1 . . 3 1 . . 2 32 2 1 12 3 39 Power 16 | . . . . . 1 1 . . 1 4 . 1 2 . 6 Propulsion 31 | . 1 1 . . . . . . . 12 2 . 4 . 11 Utility 36 | . . . . . 2 . . . 1 11 . . 5 3 14 Weapon 15 | . 1 . . . . . . . . 5 . . 1 . 8 Highest Loss Streak 14 | . 1 1 . . 3 1 . . 2 9 1 1 11 3 14 To Critical Strikes . | . . . . . . . . . . . . . . . . Average Slot Usage (%) 89 | . 98 100 100 99 98 86 92 92 99 86 93 90 65 67 77 Engine 4 | . 14 14 14 14 4 3 7 7 . 3 5 3 . . . Core 2 | . . . . . 4 3 . . 6 1 . 1 1 . 2 Reactor 1 | . . . . . . . . . . . 4 5 4 5 2 Treads 5 | . 19 3 . . 8 7 7 7 7 2 . . . . . Leg 1 | . . . . . . . . . . 10 3 . . . . Wheel 10 | . 8 24 28 28 9 12 15 15 14 9 16 21 4 . . Hover 3 | . . . . . . . . . . . . . 15 21 12 Device 9 | . 2 . . . 17 9 7 7 6 7 16 15 3 2 17 Storage 8 | . 14 14 14 14 10 7 7 7 14 6 8 5 5 5 4 Processor 7 | . . . . . 9 7 7 7 7 9 10 10 10 13 12 Hackware 4 | . . . . . . 5 7 7 7 6 5 6 10 10 8 Protection 10 | . 11 14 14 14 16 12 15 15 15 13 5 10 1 3 3 Energy Gun 4 | . 21 20 28 24 . 1 . . . . . 5 1 . . Energy Cannon 1 | . . . . . . 1 . . 5 2 . . . . 2 Ballistic Gun 1 | . . 1 . . 4 . . . . . . . . 1 1 Ballistic Cannon 3 | . . . . . 10 5 15 11 5 . . . . . . Launcher 1 | . . 2 . 2 . . . . 1 3 4 . . . . Impact Weapon 2 | . . . . . . 5 . 3 1 4 4 4 4 3 2 Naked Turns 4 | . . . . . . . . . . . . . . . 4 Heaviest Build 91 | 12 49 51 50 51 76 77 77 77 75 88 86 78 75 62 91 Greatest Support 71 | 32 40 26 26 28 28 28 28 28 28 71 48 48 48 41 64 Greatest Overweight (x) 10 | . 3 5 1 1 6 6 2 2 6 7 2 1 3 3 10 Average Overweight (x) 2 | . 1 1 1 1 4 3 2 2 2 2 1 1 2 1 . Largest Inventory Capacity 20 | 8 20 20 20 20 20 20 20 20 20 20 20 15 15 15 15 Average Capacity 17 | 7 16 20 20 20 20 20 20 20 20 20 15 15 15 15 14 Most Carried 20 | 8 20 20 20 20 20 20 20 20 20 20 19 15 15 12 15 Average Carried 16 | 4 12 19 19 20 19 19 19 20 19 16 14 14 11 10 13 Final Capacity 20 | 8 20 20 20 20 20 20 20 20 20 20 15 15 15 15 5 Final Carried 20 | 8 20 20 20 20 20 20 20 20 20 19 15 15 10 12 5 Class Distribution -------------------- 27% | Mutant 25% | Scavenger-Mutant 17% | Hacker-Mutant 9% | Scavenger-Assassin 8% | Skirmisher 4% | Scavenger-Skirmisher 4% | Machinist-Assassin Dominant Class ---------------- Mutant | -10/Materials Mutant | -10/Mines Mutant | -10/Exiles Mutant | -9/Mines Skirmisher | -8/Materials Scavenger-Assassin | -7/Factory Scavenger-Mutant | -7/Lower Caves Scavenger-Mutant | -7/Data Miner Scavenger-Mutant | -6/Proximity Caves Scavenger-Mutant | -6/Factory Scavenger-Assassin | -5/Factory Machinist-Assassin | -4/Factory Hacker-Mutant | -4/Upper Caves Hacker-Mutant | -4/Upper Caves Hacker-Mutant | -3/Research Resources | -11 -10 -10 -10 -9 -8 -7 -7 -7 -6 -6 -5 -4 -4 -4 -3 ----------- Run | Scr Mat Min Exi Min Mat Fac Low Dat Pro Fac Fac Fac Upp Upp Res Matter Collected 4874 | 288 200 90 . 26 1195 542 27 . 276 875 53 103 263 66 870 Remotely . | . . . . . . . . . . . . . . . . Salvage Created 7385 | 151 567 269 . 60 1046 592 . . 201 1945 245 160 51 152 1946 Parts 431 | 12 38 25 . 12 95 16 . . 13 68 18 17 2 5 110 Haulers Intercepted 9 | . 1 . . . 3 1 . . . 2 1 . . . 1 Recyclers Shooed 12 | . . 2 . . . 2 . . . 4 . . . . 4 Parts Field Recycled . | . . . . . . . . . . . . . . . . Retrieved Matter . | . . . . . . . . . . . . . . . . Parts Self-Destructed 22 | . . . . . . . . . 13 . . . 3 6 . Prevented 2 | . . . . . . . 2 . . . . . . . . Kills | -11 -10 -10 -10 -9 -8 -7 -7 -7 -6 -6 -5 -4 -4 -4 -3 ------- Run | Scr Mat Min Exi Min Mat Fac Low Dat Pro Fac Fac Fac Upp Upp Res Combat Hostiles Destroyed 131 | . 7 5 . 4 28 5 . . 8 31 7 2 4 2 28 Melee 11 | . . . . . . 3 . . . 5 . . . . 3 Guns 34 | . 7 2 . . 11 . . . . 2 2 2 . 1 7 Cannons 27 | . . . . . 11 2 . . 4 4 . . . 1 5 AOE 51 | . . 3 . 4 6 . . . 4 16 5 . 4 . 9 Classes Destroyed 18 | 3 4 1 . . 3 1 . . 1 5 . . . . . Worker 28 | 1 2 3 . . 5 3 . . . 5 . 3 . . 6 Builder 55 | . 3 3 . 2 5 3 . . . 17 . 3 . . 19 Tunneler 5 | 4 . 1 . . . . . . . . . . . . . Hauler 9 | . 1 . . . 3 1 . . . 2 1 . . . 1 Recycler 11 | 1 . . . . 2 4 . . . 3 . . . . 1 Minesweeper 1 | . . . . . . . . . 1 . . . . . . Mechanic 1 | . . . . . . . . . . 1 . . . . . Operator 2 | . . . . . 1 . . . . . . 1 . . . Watcher 5 | . 3 . . . 1 . . . . . . . . . 1 Swarmer 38 | . . 3 . 4 11 . . . 5 3 5 . 4 . 3 Grunt 54 | . 7 2 . . 10 3 . . . 19 . . . 1 12 Brawler 3 | . . . . . 1 . . . . 1 . . . 1 . Duelist 1 | . . . . . . . . . . 1 . . . . . Protector 2 | . . . . . . . . . . 1 . . . . 1 Sentry 10 | . . . . . 6 1 . . 2 . . . . . 1 Specialist 2 | . . . . . . . . . . 2 . . . . . Hunter 6 | . . . . . . 1 . . 1 1 . . . . 3 Programmer 15 | . . . . . . . . . . 3 2 2 . . 8 Best Kill Streak 18 | 5 2 7 . 4 8 5 . . 5 10 5 4 4 2 18 Combat Bots Only 6 | . 2 3 . 4 6 1 . . 4 3 5 2 4 2 6 Max Kills in Single Turn 5 | 1 1 4 . 3 3 1 . . 1 5 2 1 3 1 5 Gunslinging . | . . . . . . . . . . . . . . . . Exploded 3 | . . 2 . 3 2 . . . 1 2 2 . 3 . 1 Melee 1 | . . . . . . 1 . . . 1 . . . . 1 Uniques/NPCs Destroyed . | . . . . . . . . . . . . . . . . Combat | -11 -10 -10 -10 -9 -8 -7 -7 -7 -6 -6 -5 -4 -4 -4 -3 -------- Run | Scr Mat Min Exi Min Mat Fac Low Dat Pro Fac Fac Fac Upp Upp Res Damage Taken 15897 | . 699 84 . 17 1384 361 320 . 727 4366 359 527 1212 389 5452 Core 2605 | . 85 28 . 8 157 38 64 . 85 544 18 . 211 67 1300 Absorbed by Shields . | . . . . . . . . . . . . . . . . Redirected to Shielding 410 | . . . . . 95 7 29 . 57 106 . 42 9 . 65 Core Remaining (%) 72 | 100 . . . 51 71 . . . 73 36 98 . . 75 . Volleys Fired 538 | 24 84 20 . 4 101 12 . . 23 89 20 13 3 11 134 Largest 2 | 2 2 2 . 2 2 2 . . 2 1 1 1 1 1 2 Hottest 225 | 80 100 80 . 85 100 88 . . 90 90 75 225 30 90 163 Shots Fired 684 | 28 132 23 . 8 176 21 . . 26 88 20 14 3 11 134 Gun 324 | 28 119 21 . 6 59 2 . . . 15 8 11 . 1 54 Cannon 230 | . . . . . 98 19 . . 16 26 6 . . 10 55 Launcher 103 | . . 2 . 2 10 . . . 10 47 6 3 2 . 21 Special 27 | . 13 . . . 9 . . . . . . . 1 . 4 Kinetic 248 | . . 5 . . 154 19 . . 7 15 . . . 1 47 Thermal 274 | 24 110 10 . . 12 . . . 9 26 14 11 . 10 48 Explosive 98 | . . 2 . 2 10 . . . 10 45 6 3 2 . 18 Electromagnetic 59 | 4 22 6 . 6 . 2 . . . 2 . . . . 17 Robot Hit Streak 21 | 11 9 6 . 3 12 8 . . 6 10 2 5 7 12 21 Robot Miss Streak 8 | 2 4 2 . 1 8 5 . . 5 4 2 3 . 1 4 Penetration Max 2 | . . . . . . . . . . 1 . . . . 2 Secondary Targets 3 | . . . . . 3 . . . . . . . . . . Max Gunslinging Chain 1 | . . . . . 1 . . . . . . . . . . Shots Hit Robots 509 | 22 74 16 . 4 129 30 . . 14 93 7 13 2 10 95 Core Hits 459 | 7 27 16 . 5 130 26 . . 24 103 11 12 4 4 90 Critical Kills 13 | . . . . . . 1 . . . 3 . 1 . . 8 Critical Parts Destroyed 15 | . . . . . . 3 . . 1 6 . . . . 5 Critical Strikes 35 | . 1 2 . . 2 4 . . 1 9 . 1 . . 15 Burn 3 | . 1 2 . . . . . . . . . . . . . Meltdown 2 | . . . . . . . . . . 1 . . . . 1 Destroy 13 | . . . . . . . . . . . . . . . 13 Blast 2 | . . . . . 2 . . . . . . . . . . Corrupt 1 | . . . . . . . . . . . . . . . 1 Smash 14 | . . . . . . 4 . . 1 8 . 1 . . . Melee Attacks 176 | . . . . . . 22 . 2 6 66 8 10 8 2 52 Impact 165 | . . . . . . 22 . 2 6 66 8 10 8 2 41 Slashing . | . . . . . . . . . . . . . . . . Piercing 11 | . . . . . . . . . . . . . . . 11 Sneak Attacks 34 | . . . . . . 9 . . 1 10 1 5 . . 8 Combat Hostiles 1 | . . . . . . 1 . . . . . . . . . Follow-up Attacks . | . . . . . . . . . . . . . . . . Damage Inflicted 22381 | 263 917 435 . 228 2977 1249 . . 730 6853 484 967 221 337 6720 Guns 3444 | 263 917 212 . 34 873 . . . . 264 111 175 . 26 569 Cannons 3945 | . . . . . 1469 302 . . 294 617 . . . 275 988 Explosions 9889 | . . 223 . 194 635 . . . 253 3508 265 355 221 . 4235 Melee 5091 | . . . . . . 947 . . 183 2464 108 437 . 36 916 Ramming 12 | . . . . . . . . . . . . . . . 12 Kinetic 3402 | . . 22 . . 2280 302 . . 107 264 . . . 26 401 Thermal 3553 | 223 717 115 . . 62 . . . 187 785 111 175 . 275 903 Explosive 9191 | . . 223 . 194 635 . . . 253 3177 265 355 221 . 3868 Electromagnetic 1132 | 40 200 75 . 34 . . . . . 163 . . . . 620 Impact 4720 | . . . . . . 947 . . 183 2464 108 437 . 36 545 Slashing . | . . . . . . . . . . . . . . . . Piercing 371 | . . . . . . . . . . . . . . . 371 Highest Corruption 22 | . . . . . . . . . . 22 2 1 1 4 10 Average Corruption 5 | . . . . . . . . . . 13 1 1 1 1 4 Corruption Purged . | . . . . . . . . . . . . . . . . Corruption Blocked 25 | . . . . . . . . . . . . . . . 25 Effects 89 | . . . . . . . . . . 48 5 2 4 5 25 Message Errors 16 | . . . . . . . . . . 10 . . 1 . 5 Matter Fused 24 | . . . . . . . . . . 13 2 . 2 . 7 Heat Flow Errors 13 | . . . . . . . . . . 9 . 1 1 1 1 Energy Discharges 9 | . . . . . . . . . . 3 1 . . 2 3 Parts Rejected 2 | . . . . . . . . . . . . . . . 2 Data Loss (minor) 15 | . . . . . . . . . . 10 1 . . 2 2 Data Loss (major) 3 | . . . . . . . . . . 1 . . . . 2 Misfires 1 | . . . . . . . . . . . . 1 . . . Alerts 2 | . . . . . . . . . . . 1 . . . 1 Misdirections 2 | . . . . . . . . . . 1 . . . . 1 Weapon Failures 2 | . . . . . . . . . . 1 . . . . 1 Overload Shots 2 | . . . . . . . . . . . . 2 . . . Overflow Damage 2839 | . . 13 . 20 66 576 . . 56 1183 96 112 . . 717 Projectiles 146 | . . . . . 34 . . . . 21 . . . . 91 Explosions 447 | . . 13 . 20 32 . . . . 56 8 23 . . 295 Melee 2246 | . . . . . . 576 . . 56 1106 88 89 . . 331 Knockbacks 67 | . . . . . 29 12 . . 7 12 . 1 . . 6 Impact 18 | . . . . . . . . . 1 12 . 1 . . 4 Kinetic 46 | . . . . . 28 12 . . 5 . . . . . 1 Secondary 3 | . . . . . 1 . . . 1 . . . . . 1 Self-Inflicted Damage 624 | . . 53 . . 17 . . . 21 276 95 . . . 162 Shots 27 | . . 2 . . 1 . . . 1 15 3 . . . 5 Rammed 2 | . . . . . . . . . . . . . . . 2 Targets Rammed 2 | . . . . . . . . . . . . . . . 2 Kicked . | . . . . . . . . . . . . . . . . Crushed . | . . . . . . . . . . . . . . . . Highest Temperature 418 | 56 382 80 . 36 39 63 . . 240 282 210 175 239 418 175 Average Temperature 80 | 30 92 24 . 19 10 22 . . 86 90 101 87 134 219 36 Received Heat Transfer 3034 | . 414 9 . . 621 93 24 . 33 850 . 46 81 114 749 Effects 3 | . 1 . . . . . . . 1 . . . . 1 . Shutdowns 1 | . 1 . . . . . . . . . . . . . . Energy Bleed 1 | . . . . . . . . . . . . . . 1 . Interference 1 | . . . . . . . . . 1 . . . . . . Siege Activations . | . . . . . . . . . . . . . . . . Robots Corrupted 3 | . . . . . . . . . . . . . . . 3 Combat Hostiles 3 | . . . . . . . . . . . . . . . 3 Parts Fried 69 | . 2 . . . . 15 . . . 26 1 4 . . 21 Impact Corruptions 68 | . . . . . . 14 . . 1 36 1 3 . . 13 Robots Melted 2 | . . . . . . . . . . 1 . . . . 1 Combat Hostiles 2 | . . . . . . . . . . 1 . . . . 1 Parts Melted 16 | 2 4 1 . . . . . . . 4 . . . 1 4 Heat Transferred 5273 | 500 1923 481 . . 111 . . . . 700 148 222 . 296 892 Parts Sabotaged . | . . . . . . . . . . . . . . . . Parts Stolen . | . . . . . . . . . . . . . . . . Parts Stripped . | . . . . . . . . . . . . . . . . Power Chain Reactions 1 | . . . . . . . . . . . . . . . 1 Missiles Intercepted . | . . . . . . . . . . . . . . . . Alert | -11 -10 -10 -10 -9 -8 -7 -7 -7 -6 -6 -5 -4 -4 -4 -3 ------- Run | Scr Mat Min Exi Min Mat Fac Low Dat Pro Fac Fac Fac Upp Upp Res Peak Influence 693 | 30 173 211 . 136 548 388 . . . 693 402 127 . . 577 Initial 239 | . 19 15 . . 52 227 . . . 63 239 . . . 29 Average 188 | 14 66 158 . 17 286 241 . . . 301 224 34 . . 97 Maximum Alert Level 3 | . . 1 . . 2 1 . . . 3 2 . . . 2 Low Security (%) 57 | 100 100 44 . 100 26 37 . . . 47 12 100 . . 82 Level 1 30 | . . 55 . . 60 62 . . . 6 82 . . . 11 Level 2 12 | . . . . . 12 . . . . 46 4 . . . 6 Level 3 . | . . . . . . . . . . . . . . . . Level 4 . | . . . . . . . . . . . . . . . . Level 5 . | . . . . . . . . . . . . . . . . High Security . | . . . . . . . . . . . . . . . . Max Security . | . . . . . . . . . . . . . . . . Squads Dispatched 31 | . 2 . . . 1 1 . . . 13 2 3 . . 9 Investigation 5 | . 1 . . . . . . . . 2 1 . . . 1 Extermination 8 | . . . . . . . . . . 4 1 1 . . 2 Reinforcement 15 | . 1 . . . 1 . . . . 5 . 2 . . 6 Assault 2 | . . . . . . . . . . 2 . . . . . Garrison 1 | . . . . . . 1 . . . . . . . . . Intercept . | . . . . . . . . . . . . . . . . Searches Triggered . | . . . . . . . . . . . . . . . . Data Miner Redirects 2 | . . . . . . . . . . 2 . . . . . Construction Impeded 7 | . . . . . . . . . . 2 . 2 . . 3 Haulers Reinforced 3 | . . . . . . . . . . 2 . . . . 1 Active Scanning Responses . | . . . . . . . . . . . . . . . . Cargo Convoy Interrupts 1 | . . . . . . . . . . . . . . . 1 Stealth | -11 -10 -10 -10 -9 -8 -7 -7 -7 -6 -6 -5 -4 -4 -4 -3 --------- Run | Scr Mat Min Exi Min Mat Fac Low Dat Pro Fac Fac Fac Upp Upp Res Distress Signals 14 | . . 1 . . 7 . . . . 1 . . . . 5 Communications Jammed . | . . . . . . . . . . . . . . . . Distress Signals . | . . . . . . . . . . . . . . . . Times Spotted 226 | . 13 5 . 3 52 10 1 . 11 47 5 5 7 4 63 Peak Tracking Total 18 | . 3 3 . 4 12 3 1 . 3 5 3 2 5 4 18 Tactical Retreats 12 | . . . . . 3 1 . . 1 3 . 1 . . 3 Traps | -11 -10 -10 -10 -9 -8 -7 -7 -7 -6 -6 -5 -4 -4 -4 -3 ------- Run | Scr Mat Min Exi Min Mat Fac Low Dat Pro Fac Fac Fac Upp Upp Res Traps Triggered 7 | . 3 . . . . . . . . 2 1 . . . 1 Indirectly . | . . . . . . . . . . . . . . . . Trap Hack Attempts . | . . . . . . . . . . . . . . . . Triggered . | . . . . . . . . . . . . . . . . Disarmed . | . . . . . . . . . . . . . . . . Reprogrammed . | . . . . . . . . . . . . . . . . Reused . | . . . . . . . . . . . . . . . . Traps Extracted . | . . . . . . . . . . . . . . . . Installed . | . . . . . . . . . . . . . . . . Triggered 3 | . . . . . . . 1 . . . . . . . 2 Machines | -11 -10 -10 -10 -9 -8 -7 -7 -7 -6 -6 -5 -4 -4 -4 -3 ---------- Run | Scr Mat Min Exi Min Mat Fac Low Dat Pro Fac Fac Fac Upp Upp Res Machines Disabled 16 | . 1 . . . 2 . . . . 12 . . . . 1 Max in Single Turn 5 | . 1 . . . 1 . . . . 5 . . . . 1 Garrison Access 2 | . . . . . 1 . . . . 1 . . . . . Machines Sabotaged . | . . . . . . . . . . . . . . . . Garrisons Compromised 1 | . . . . . . . . . . . . . . . 1 Overloaded Fab Kills . | . . . . . . . . . . . . . . . . Hacking | -11 -10 -10 -10 -9 -8 -7 -7 -7 -6 -6 -5 -4 -4 -4 -3 --------- Run | Scr Mat Min Exi Min Mat Fac Low Dat Pro Fac Fac Fac Upp Upp Res Machines Accessed 50 | . 7 . 1 . 12 4 . 4 . 10 4 3 1 . 4 Terminals 31 | . 6 . . . 8 3 . . . 5 3 3 1 . 2 Fabricators 3 | . . . . . . . . . . 2 1 . . . . Repair Stations 1 | . . . . . . . . . . 1 . . . . . Recycling Units 3 | . 1 . . . 1 . . . . 1 . . . . . Scanalyzers 5 | . . . . . 2 1 . . . . . . . . 2 Garrison Access 2 | . . . . . 1 . . . . 1 . . . . . Total Hacks 138 | . 15 . 1 . 26 19 . 29 . 22 12 6 1 . 7 Successful 99 | . 8 . 1 . 14 16 . 29 . 13 9 4 1 . 4 Failed 38 | . 7 . . . 11 3 . . . 9 3 2 . . 3 Catastrophic 7 | . . . . . 3 1 . . . . 1 1 . . 1 Database Lockouts 1 | . . . . . 1 . . . . . . . . . . Manual 63 | . 11 . 1 . 16 9 . . . 10 6 5 2 . 3 Terminals 70 | . 14 . . . 18 11 . . . 8 9 6 1 . 3 Fabricators 10 | . . . . . . . . . . 7 3 . . . . Repair Stations 2 | . . . . . . . . . . 2 . . . . . Recycling Units 5 | . 1 . . . 1 . . . . 3 . . . . . Scanalyzers 18 | . . . . . 6 8 . . . . . . . . 4 Garrison Access 3 | . . . . . 1 . . . . 2 . . . . . Terminal Hacks 54 | . 5 . 1 . 4 5 . 29 . 3 4 2 1 . . Record 13 | . . . . . . 1 . 11 . . . . 1 . . Part Schematic 9 | . . . . . . . . 9 . . . . . . . Robot Schematic 6 | . . . . . . . . 6 . . . . . . . Robot Analysis 2 | . 1 . . . 1 . . . . . . . . . . Prototype ID Bank 3 | . . . . . . . . 3 . . . . . . . Open DSF 2 | . . . . . . 1 . . . . . 1 . . . Level Access Points 3 | . . . . . . 1 . . . 1 1 . . . . Branch Access Points 1 | . . . . . . 1 . . . . . . . . . Terminal Index 3 | . 1 . . . . 1 . . . . . 1 . . . Alert Level 3 | . 1 . . . . . . . . 1 1 . . . . Unreport Threat 3 | . . . . . 1 . . . . 1 1 . . . . Recall Reinforcements 1 | . 1 . . . . . . . . . . . . . . Registered Components 1 | . 1 . . . . . . . . . . . . . . Zone Layout 3 | . . . . . 2 . . . . . 1 . . . . EX-Prototype ID Bank 1 | . . . 1 . . . . . . . . . . . . Fabricator Hacks 6 | . . . . . . . . . . 4 2 . . . . Load Schematic 3 | . . . . . . . . . . 2 1 . . . . Build 3 | . . . . . . . . . . 2 1 . . . . Repair Station Hacks 1 | . . . . . . . . . . 1 . . . . . Scan Component 1 | . . . . . . . . . . 1 . . . . . Recycling Unit Hacks 3 | . 1 . . . 1 . . . . 1 . . . . . Report Inventory 2 | . 1 . . . 1 . . . . . . . . . . Retrieve Components 1 | . . . . . . . . . . 1 . . . . . Scanalyzer 16 | . . . . . 5 8 . . . . . . . . 3 Insert Component 9 | . . . . . 3 4 . . . . . . . . 2 Analyze 7 | . . . . . 2 4 . . . . . . . . 1 Garrison Access Hacks 2 | . . . . . 1 . . . . 1 . . . . . Seal Access 2 | . . . . . 1 . . . . 1 . . . . . Unauthorized Hacks 17 | . 2 . . . 3 3 . . . 3 3 2 . . 1 Terminals 15 | . 2 . . . 3 3 . . . 1 3 2 . . 1 Assimilate 2 | . . . . . . 1 . . . . . 1 . . . Botnet 10 | . 2 . . . 2 2 . . . 1 2 . . . 1 Operators 3 | . . . . . 1 . . . . . 1 1 . . . Fabricators 2 | . . . . . . . . . . 2 . . . . . Prioritize 2 | . . . . . . . . . . 2 . . . . . Repair Stations . | . . . . . . . . . . . . . . . . Recycling Units . | . . . . . . . . . . . . . . . . Scanalyzers . | . . . . . . . . . . . . . . . . Garrison Access . | . . . . . . . . . . . . . . . . Data Cores Recovered . | . . . . . . . . . . . . . . . . Used . | . . . . . . . . . . . . . . . . Hacking Detections 40 | . 7 . . . 10 3 . . . 9 4 2 1 . 4 Full Trace Events 3 | . . . . . . . . . . 2 1 . . . . Feedback Events . | . . . . . . . . . . . . . . . . Feedback Blocked . | . . . . . . . . . . . . . . . . Robot Schematics Acquired 6 | . . . . . . . . 6 . . . . . . . Robots Built . | . . . . . . . . . . . . . . . . Authchips . | . . . . . . . . . . . . . . . . Time . | . . . . . . . . . . . . . . . . Total Robot Build Rating . | . . . . . . . . . . . . . . . . Part Schematics Acquired 16 | . . . . . 2 4 . 9 . . . . . . 1 Parts Built 6 | . . . . . . . . . . 4 2 . . . . Authchips . | . . . . . . . . . . . . . . . . Time 93 | . . . . . . . . . . 62 31 . . . . Total Part Build Rating 12 | . . . . . . . . . . 8 4 . . . . Parts Repaired . | . . . . . . . . . . . . . . . . Time . | . . . . . . . . . . . . . . . . Parts Recycled . | . . . . . . . . . . . . . . . . Recycled Matter . | . . . . . . . . . . . . . . . . Retrieved Matter . | . . . . . . . . . . . . . . . . Retrieved Components . | . . . . . . . . . . . . . . . . Parts Scanalyzed 7 | . . . . . 2 4 . . . . . . . . 1 Part Schematics Acquired 7 | . . . . . 2 4 . . . . . . . . 1 Parts Damaged 2 | . . . . . 1 . . . . . . . . . 1 Bothacking | -11 -10 -10 -10 -9 -8 -7 -7 -7 -6 -6 -5 -4 -4 -4 -3 ------------ Run | Scr Mat Min Exi Min Mat Fac Low Dat Pro Fac Fac Fac Upp Upp Res Used RIF Installer . | . . . . . . . . . . . . . . . . Robots Hacked . | . . . . . . . . . . . . . . . . Non-combat . | . . . . . . . . . . . . . . . . Combat . | . . . . . . . . . . . . . . . . Robot Hacks Applied . | . . . . . . . . . . . . . . . . Relay Couplers Released . | . . . . . . . . . . . . . . . . Fabnet Peak Effective % . | . . . . . . . . . . . . . . . . Robots Rewired . | . . . . . . . . . . . . . . . . Allies Hacked . | . . . . . . . . . . . . . . . . Hacks Repelled . | . . . . . . . . . . . . . . . . Allies | -11 -10 -10 -10 -9 -8 -7 -7 -7 -6 -6 -5 -4 -4 -4 -3 -------- Run | Scr Mat Min Exi Min Mat Fac Low Dat Pro Fac Fac Fac Upp Upp Res Total Allies 10 | . . 2 . . . 1 . . 1 . . 1 1 . 4 Largest Group 2 | . . 2 1 . . 1 . . 1 . . 1 1 1 2 Highest-Rated Group 146 | . . 47 31 . . 10 . . 96 . . 26 116 116 146 Highest-Rated Ally 116 | . . 31 31 . . 10 . . 96 . . 26 116 116 82 Total Orders 8 | . . . . . . 2 . . . . 1 4 . . 1 STAY 3 | . . . . . . 1 . . . . . 2 . . . FOLLOW 3 | . . . . . . 1 . . . . . 2 . . . EXPLORE 2 | . . . . . . . . . . . 1 . . . 1 Ally Attacks 28 | . . . . . . . . . 4 . . . 2 7 15 Total Damage 1273 | . . . . . . . . . 181 . . . 75 489 528 Kills 7 | . . . . . . . . . 1 . . . 1 2 3 Allies Corrupted . | . . . . . . . . . . . . . . . . Allies Melted . | . . . . . . . . . . . . . . . . Field Lobotomies 5 | . . . . . . . . . . . . . 1 . 4 Intel | -11 -10 -10 -10 -9 -8 -7 -7 -7 -6 -6 -5 -4 -4 -4 -3 ------- Run | Scr Mat Min Exi Min Mat Fac Low Dat Pro Fac Fac Fac Upp Upp Res Robot Analysis Total 2 | . 1 . . . 1 . . . . . . . . . . Derelict Logs Recovered 8 | . . 1 . 1 . . 1 . 2 . . . 2 1 . Drone Launches 4 | . . . . . . . . . . . 2 . . . 2 Drone Recoveries 2 | . . . . . . . . . . . 1 . . . 1 Exploration | -11 -10 -10 -10 -9 -8 -7 -7 -7 -6 -6 -5 -4 -4 -4 -3 ------------- Run | Scr Mat Min Exi Min Mat Fac Low Dat Pro Fac Fac Fac Upp Upp Res Turns Passed 13797 | 145 1532 305 429 223 2505 749 224 142 1123 1717 822 518 1302 244 1817 Spaces Moved 7699 | 76 779 225 408 176 1166 338 179 107 764 808 449 395 749 134 946 Core 11 | 3 . . . . . . . . . . . . . . 8 Treads 342 | . 285 . . . 31 18 . . 4 4 . . . . . Legs 98 | . . . . . . . . . . 89 . . . . 9 Wheels 5800 | 73 494 225 408 176 1135 320 179 107 760 715 449 395 286 . 78 Hover 1446 | . . . . . . . . . . . . . 463 134 849 Flight 2 | . . . . . . . . . . . . . . . 2 Fastest Speed 48 | 50 100 105 105 105 110 125 125 125 125 110 105 105 48 100 50 Average Speed 135 | 98 156 110 105 109 164 159 125 125 126 145 111 105 165 132 106 Slowest Speed 550 | 100 320 155 105 110 410 410 125 125 410 330 120 105 210 210 550 Overloaded Moves . | . . . . . . . . . . . . . . . . Propulsion Burnouts . | . . . . . . . . . . . . . . . . Robots Hopped . | . . . . . . . . . . . . . . . . Cave-ins Triggered . | . . . . . . . . . . . . . . . . Exploration Rate (%) 45 | 4 98 40 76 41 87 11 21 75 84 25 19 10 91 17 24 Regions Visited 15 Branch Regions 8 Pre-discovered Areas 2 | . . . . . . . . 1 . . . . 1 . . Known Exits Taken 4 | . . . . . . 1 . . 1 1 1 . . . . Unknown Exits Taken 11 | 1 1 1 1 1 1 . 1 1 . . . 1 1 1 . Scrap Searched 11 | . . . . 2 . . 1 . 3 . . . 3 2 . Spaces Dug 150 | . 12 . . . 7 9 . 2 4 18 25 7 8 . 58 Terrain Destroyed 626 | . 12 20 . 20 96 9 . 2 50 134 71 9 23 1 179 Melee 85 | . . . . . . 9 . 2 4 18 7 5 8 . 32 Projectile 83 | . 12 . . . 29 . . . 3 3 7 2 . 1 26 AOE 458 | . . 20 . 20 67 . . . 43 113 57 2 15 . 121 Terrain Rammed . | . . . . . . . . . . . . . . . . Walls Destroyed . | . . . . . . . . . . . . . . . . Machines Disabled . | . . . . . . . . . . . . . . . . Actions | -11 -10 -10 -10 -9 -8 -7 -7 -7 -6 -6 -5 -4 -4 -4 -3 --------- Run | Scr Mat Min Exi Min Mat Fac Low Dat Pro Fac Fac Fac Upp Upp Res Total 9935 | 115 929 259 409 200 1566 480 180 111 876 1112 739 474 793 185 1507 Wait 1011 | . 29 . . 10 175 89 . . 61 68 222 39 24 29 265 Move 7684 | 75 778 224 407 175 1165 337 178 106 763 807 448 394 748 133 946 Hop . | . . . . . . . . . . . . . . . . Pick Up 127 | 9 12 3 1 2 31 3 1 . 6 23 6 6 . 2 22 Fast Attach 92 | 6 6 2 . 3 10 3 . 1 1 16 10 2 1 4 27 Attach 72 | 1 1 . . . 6 3 . . 3 20 7 2 6 2 21 Detach 12 | . 2 . . . 1 . . . . . 1 . 1 2 5 Swap 108 | . 12 5 . 1 32 8 . 1 9 14 4 3 2 . 17 Drop 112 | . 5 5 1 5 45 3 1 1 4 8 13 5 . . 16 Fire 538 | 24 84 20 . 4 101 12 . . 23 89 20 13 3 11 134 Melee 176 | . . . . . . 22 . 2 6 66 8 10 8 2 52 Ram 3 | . . . . . . . . . . 1 . . . . 2 Kick . | . . . . . . . . . . . . . . . . Crush . | . . . . . . . . . . . . . . . . Escape Stasis . | . . . . . . . . . . . . . . . . Rewire . | . . . . . . . . . . . . . . . . Trap . | . . . . . . . . . . . . . . . . Miscellaneous . | . . . . . . . . . . . . . . . . Route ------- -11/Scrapyard -10/Materials (discovered 4 exits: [*Mat x2] / [*Min x2]) -10/Mines (discovered 2 exits: [*Mat] / *Exi) -10/Exiles -9/Mines -8/Materials (discovered 3 exits: *Fac x3) -7/Factory (discovered 6 exits: Fac x4 / *Low x2) -7/Lower Caves -7/Data Miner -6/Proximity Caves -6/Factory (discovered 4 exits: *Fac x4) -5/Factory (discovered 4 exits: *Fac x4) -4/Factory -4/Upper Caves -4/Upper Caves -3/Research (discovered 1 exit: Arm) History --------- Turn | Location | Event 9 | -11/Scrapyard | Discovered new exit (range 14) 146 | -11/Scrapyard | Entered Materials 337 | -10/Materials | Build established: Mutant 941 | -10/Materials | Discovered new exit (range 11) 1094 | -10/Materials | Discovered new exit (range 16) 1317 | -10/Materials | Discovered new exit (range 15) 1559 | -10/Materials | Discovered new exit (range 15) 1678 | -10/Materials | Entered Mines 1781 | -10/Mines | Discovered new exit (range 8) 1950 | -10/Mines | Learned Materials terminal intel 1979 | -10/Mines | Deemed a non-threat by the Exiles lab entrance 1979 | -10/Mines | Discovered new exit (range 5) 1983 | -10/Mines | Entered Exiles 1983 | -10/Exiles | Accompanied by 1 ally 2011 | -10/Exiles | Met 8R-AWN 2013 | -10/Exiles | Led the pair of lost Derelicts to a safe place 2028 | -10/Exiles | Met EX-HEX 2059 | -10/Exiles | Met EX-BIN 2080 | -10/Exiles | Aligned with FarCom system 2081 | -10/Exiles | Given EX-Vault access code 2121 | -10/Exiles | Opened EX-Vault 2129 | -10/Exiles | Found Field Lobotomy Kit 2166 | -10/Exiles | Warned to stay clear of 0b10 Research branches 2271 | -10/Exiles | Met EX-DEC 2300 | -10/Exiles | Visited The Gauntlet 2401 | -10/Exiles | Discovered new exit (range 12) 2412 | -10/Exiles | Left Exiles lab with Field Lobotomy Kit 2412 | -10/Exiles | Entered Mines 2426 | -9/Mines | Learned Materials machine intel 2621 | -9/Mines | Discovered new exit (range 7) 2635 | -9/Mines | Entered Materials 2635 | -8/Materials | Evolved 4 slots: Utility x4 2636 | -8/Materials | Loaded intel: 48 machine locations 2637 | -8/Materials | Loaded intel: 12 terminal locations 2968 | -8/Materials | Build established: Scavenger-Mutant 3244 | -8/Materials | Central database locked down 3320 | -8/Materials | Discovered new exit (range 7) 3335 | -8/Materials | Lost 3 parts (1p2u) 4294 | -8/Materials | Build established: Mutant 4320 | -8/Materials | Discovered new exit (range 10) 4406 | -8/Materials | Discovered new exit (range 11) 4659 | -8/Materials | Build established: Skirmisher 5140 | -8/Materials | Entered Factory 5140 | -7/Factory | Evolved 2 slots: Propulsion x1, Utility x1 5680 | -7/Factory | Identified exit to Lower Caves 5680 | -7/Factory | Identified exit to Factory 5811 | -7/Factory | Build established: Scavenger-Assassin 5851 | -7/Factory | Garrison activated, responded to threat 5889 | -7/Factory | Entered Lower Caves 5914 | -7/Lower Caves | Learned Factory emergency access door positions 6005 | -7/Lower Caves | Spotted B-75 Beast 6099 | -7/Lower Caves | A Derelict revealed a hidden shortcut to meet someone special 6113 | -7/Lower Caves | Entered Data Miner 6113 | -7/Data Miner | Discovered new exit (range 6) 6137 | -7/Data Miner | Met Data Miner 6175 | -7/Data Miner | Learned location of Section 7 (-2) 6175 | -7/Data Miner | Acquired the access code to Warlord's prototype stash 6203 | -7/Data Miner | Build established: Scavenger-Mutant 6213 | -7/Data Miner | Received God Mode back door access code from Data Miner 6255 | -7/Data Miner | Entered Proximity Caves 6448 | -6/Proximity Caves | Learned Factory terminal intel 6488 | -6/Proximity Caves | Escorted by Enhanced Grunt 6551 | -6/Proximity Caves | Found Prototype Device 6761 | -6/Proximity Caves | Learned location of 1 exit from Factory 6776 | -6/Proximity Caves | Spotted B-75 Beast 7306 | -6/Proximity Caves | Attracted the attention of an 0b10 checkpoint 7331 | -6/Proximity Caves | Attracted the attention of an 0b10 outpost 7344 | -6/Proximity Caves | Discovered exit to Factory (range 15) 7378 | -6/Proximity Caves | Entered Factory 7378 | -6/Factory | Evolved 2 slots: Propulsion x1, Utility x1 7379 | -6/Factory | Identified exit to Factory 7381 | -6/Factory | Loaded intel: 26 terminal locations 7881 | -6/Factory | Lost 9 parts (2p3n3u1w) 7980 | -6/Factory | Incoming investigation squad redirected 7989 | -6/Factory | Fabricated Arm. Wheel? 8003 | -6/Factory | Lost 3 parts (2n1u) 8136 | -6/Factory | System corruption reached 10% 8164 | -6/Factory | Lost 4 parts (2n1u1w) 8259 | -6/Factory | Identified Exp. Thermal Shield 8279 | -6/Factory | Lost 5 parts (1p1n1u2w) 8775 | -6/Factory | Core integrity fell below 50% 8778 | -6/Factory | First assault squad dispatched 8807 | -6/Factory | Incoming assault squad redirected 8833 | -6/Factory | Fabricated Arm. Wheel (x2) 8868 | -6/Factory | Lost 3 parts (1n2u) 9095 | -6/Factory | Entered another Factory area 9095 | -5/Factory | Evolved 2 slots: Power x1, Utility x1 9432 | -5/Factory | Build established: Scavenger-Assassin 9538 | -5/Factory | Fabricated Arm. Wheel (x2) 9595 | -5/Factory | Identified exit to Factory 9917 | -5/Factory | Entered another Factory area 9917 | -4/Factory | Evolved 2 slots: Utility x2 10207 | -4/Factory | Build established: Machinist-Assassin 10242 | -4/Factory | P-70 Sage assimilated allied Administrator 7a 10414 | -4/Factory | Discovered new exit (range 12) 10435 | -4/Factory | Entered Upper Caves 10662 | -4/Upper Caves | Spotted B-86 Titan 10711 | -4/Upper Caves | Build established: Hacker-Mutant 10782 | -4/Upper Caves | Assimilated B-86 Titan with FLK Orb 10808 | -4/Upper Caves | Lost 11 parts (2p4n4u1w) 11060 | -4/Upper Caves | Attracted the attention of an 0b10 checkpoint 11179 | -4/Upper Caves | Learned location of Testing (-3) 11463 | -4/Upper Caves | Encountered a Warlord checkpoint 11524 | -4/Upper Caves | Discovered new exit (range 7) 11737 | -4/Upper Caves | Entered another Upper Caves area 11737 | -4/Upper Caves | Accompanied by 1 ally 11742 | -4/Upper Caves | Discovered new exit (range 10) 11940 | -4/Upper Caves | Lost 3 parts (3u) 11981 | -4/Upper Caves | Entered Research 11981 | -3/Research | Evolved 2 slots: Utility x2 11982 | -3/Research | Identified exit to Armory 12056 | -3/Research | Found Enh. Force Lance 12058 | -3/Research | Found Enh. Force Lance 13066 | -3/Research | Build established: Scavenger-Mutant 13427 | -3/Research | Lost 7 parts (1p4u2w) 13505 | -3/Research | Assimilated Y-72 Warden with FLK Orb 13508 | -3/Research | Assimilated P-80 Master with FLK Orb 13520 | -3/Research | Assimilated L-61 Swordsman with FLK Orb 13523 | -3/Research | Assimilated L-61 Swordsman with FLK Orb 13533 | -3/Research | Cargo convoy interrupted 13550 | -3/Research | System corruption reached 10% 13599 | -3/Research | Lost 14 parts (2p6n5u1w) 13631 | -3/Research | Core integrity fell below 50% 13711 | -3/Research | Found Prototype Launcher 13714 | -3/Research | Found Prototype Launcher 13755 | -3/Research | Lost 12 parts (2p3n3u4w) 13792 | -3/Research | Core integrity fell below 20% 13792 | -3/Research | Identified Tesla Bomb Launcher (x2) 13794 | -3/Research | Released all parts (5) 13798 | -3/Research | Destroyed by H-77 Assassin with Coil Gun Last Messages --------------- 13783_ Terrain Scan Processor fried. 13786_ Acquired 25 matter. 13786_ W-44 Eye sends out distress signal. 13790_ AV>FPP:TQT=>DSZQDV> E&C 13794_ Released Adv. Target Analyzer. 13794_ Released Centrium Wheel. 13795_ Critical hit (Burn: +50). 13797_ Penetrated by Slug. 13797_ Slug penetrates Wall. 13798_ Penetrated by Slug. Map ----- +----------------------------------------------------+ | ?????????????????????????????????????????????????? | | ?????????????????????????????????????????????????? | | ?????????????????????????????????????????????????? | | ?????????????????????????????????????????????????? | | ?????????????????????????????????????????????????? | | ?????????????????????????????????????????????????? | | ?????????????????????????????????????????????????? | | ?????????????????????????????????????????????????? | | ?????????????????????????????????????????????????? | | ?????????????????????????????????????????????????? | | ?????????????????????????? ???????????????? | | ?????????????????????????# #??????????????? | | ?????????????????????????+ #??????????????? | | ?????????????????????????# #??????????????? | | ????????????????????????## hh g"#?????????????? | | ????????????????????????# g "#?????????????? | | ????????????????????????# g "#?????????????? | | ????????????????????????+ gg T#?????????????? | | ????????????????????????# g "#?????????????? | | ????????????????????????# "#?????????????? | | ???????????? ???????????# "#?????????????? | | ???????????# ^ ????????# #??????????????? | | ???????????# ?????# #??????????????? | | ???????????# ##### g= #??????????????? | | ????????????# k/=#?????????????? | | ????????????# @ =]]]#???########## | | ????????????# #####+#####=#???# # | | ????????????# ?????????? ???# #???# = # | | ?????????????????????????? ???#g##### ""# | | ?????????????????????????!! ??# g ## ""# | | ?????????????????????????! ??# ## T"# | | ????????????????????????#######?# gg+ ""# | | ????????????????????????????????# ## ! # | | ????????????????????????????????# ## # | | ????????????????????????????????# ## # | | ????????????????????????????????# ######+#### | | ????????????????????????????????#Y *%! | | ????????????????????????????????+w | | ??????????????????????????????? # A = | | ?????????????????????????????? + | | ????????????????????????????? ?############### | | ???????????????????????????? "??????# =# | | ???????????????????????????"Y???????# # | | ????????????????????????????????????# # | | ????????????????????????????????????# # | | ????????????????????????????????????# ! # | | ????????????????????????????????????#! # | | ????????????????????????????????????# #### | | ????????????????????????????????????# # | | ????????????????????????????????????#######+# | +----------------------------------------------------+ Best States ------------- Heat Dissipation 108 Energy Generation 41 Energy Capacity 440 Matter Stores 421 Matter Capacity 500 Sight Range 16 Terrain Scan Range 20 Terrain Scan Density 210 Armor Coverage 750 Resistance: KI 30 Resistance: TH 30 Resistance: EM 15 Core Shielding 30 Propulsion Shielding 33 Utility Shielding 66 Weapon Shielding 66 Melee Speed Boost 20 Evasion (%) 55 Targeting Accuracy 8 Melee Accuracy 8 Target Analysis 8 Core Analysis 6 Recoil Reduction 6 Offensive Hacking 30 Item Schematics ----------------- Arm. Wheel | -8/Materials | Scanalyzed Hacking Suite | -8/Materials | Scanalyzed Hvy. Mace | -7/Factory | Scanalyzed Imp. Light Armor Plating | -7/Factory | Scanalyzed Lrg. Storage Unit | -7/Factory | Scanalyzed Mni. Grenade Launcher | -7/Factory | Scanalyzed Combat Drone Bay | -7/Data Miner | Free Lgt. Regenerative Plating | -7/Data Miner | Free Cld. Cesium-ion Thruster | -7/Data Miner | Free Exp. Weapon Shielding | -7/Data Miner | Free Imp. Heavy Laser | -7/Data Miner | Free Antigrav System | -7/Data Miner | Free Imp. Component Analysis Suite | -7/Data Miner | Free Hvy. Phase Cannon | -7/Data Miner | Free Adv. Plasma Cannon | -7/Data Miner | Free Enh. Force Lance | -3/Research | Scanalyzed Robot Schematics ------------------ B-48 Gladiator | -7/Data Miner | Free S-27 Virus | -7/Data Miner | Free O-24 Administrator | -7/Data Miner | Free G-47 Trooper | -7/Data Miner | Free M-22 Extractor | -7/Data Miner | Free B-60 Warrior | -7/Data Miner | Free Fabricated ------------ Arm. Wheel | x2 | -6/Factory Arm. Wheel | x2 | -6/Factory Arm. Wheel | x2 | -5/Factory Alien Tech Used ----------------- None Achievements -------------- Dramatic Entrance Challenges ------------ None Game ------ Seed MediumSurveybotBrace Manual? 0 Play Time 03:41:25 Cumulative 127.2 hours Start 2022.08.04 @ 20:05:27 End 2022.08.05 @ 21:58:09 Sessions 3 Manual Loads 0 Difficulty Rogue Special Mode None Game No. 75 Rogue 74 Adventurer 0 Explorer 1 Win Type - Total 0 Types 0/0/0/0/0/0/0/0/0 Lore% 36 Gallery% 45 Achievement% 33 Wizard Run 0 Options --------- ASCII 0 Keyboard 0 Movement Mouse Keybinds 0 Fullscreen 1 Font 18/SmallcapsGlow Map View 76x50 Tactical HUD 1 Map Filters NONE Filters NONE Steam 1 RUN: e1509875-200a-4597-a56b-f7aefbfdeddd